bitfinex/quotes_SOLUSD_20240915
["timestamp","ask_amount","ask_price","bid_price","bid_amount"]
[1726365091420,20.0,138.12,138.06,21.8021353]
[1726365091618,20.0,138.12,138.07,5.62534649]
[1726365091920,20.0,138.12,138.06,21.8021353]
[1726365099245,27.2403,138.12,138.06,21.8021353]
[1726365104326,7.2403,138.12,138.06,21.8021353]
[1726365112434,57.2406,138.11,138.06,15.6418353]
[1726365116356,57.2406,138.11,138.06,0.2553353]
[1726365117934,60.04644206,138.11,138.06,0.2553353]
[1726365118440,60.04644206,138.11,138.07,5.6224259]
[1726365118744,60.04644206,138.11,138.06,0.2553353]
[1726365119040,60.04644206,138.11,138.07,5.62242469]
[1726365119230,60.04644206,138.11,138.06,0.2553353]
[1726365119433,60.04644206,138.11,138.07,5.62242032]
[1726365119619,60.04644206,138.11,138.06,0.2553353]
[1726365119821,60.04644206,138.11,138.07,5.62242032]
[1726365120016,60.04644206,138.11,138.06,0.2553353]
[1726365120234,60.04644206,138.11,138.07,5.622422]
[1726365120433,60.04644206,138.11,138.06,0.2553353]
[1726365120637,60.04644206,138.11,138.07,5.62242719]
[1726365120940,60.04644206,138.11,138.06,0.2553353]
[1726365121145,60.04644206,138.11,138.07,5.62242839]
[1726365121435,60.04644206,138.11,138.06,0.2553353]
[1726365121739,60.04644206,138.11,138.07,5.62242839]
[1726365122043,2.80584206,138.11,138.06,0.2553353]
[1726365122336,20.0,138.12,138.07,5.62201815]
[1726365122538,20.0,138.12,138.08,5.62138543]
[1726365122749,20.0,138.13,138.06,0.2553353]
[1726365122924,20.0,138.13,138.07,5.6215575]
[1726365123129,20.0,138.13,138.08,5.6215575]
[1726365123338,20.0,138.13,138.06,0.2553353]
[1726365123522,20.0,138.13,138.07,5.62155347]
[1726365123723,20.0,138.13,138.08,5.62155347]
[1726365124022,20.0,138.13,138.06,0.2553353]
[1726365124217,20.0,138.13,138.07,5.62149553]
[1726365124444,20.0,138.13,138.08,5.62149553]
[1726365124745,20.0,138.13,138.06,0.2553353]
[1726365124951,20.0,138.13,138.07,5.62149312]
[1726365125246,20.0,138.13,138.08,5.62149312]
[1726365125428,20.0,138.13,138.09,5.62148437]
[1726365125629,20.0,138.13,138.06,0.2553353]
[1726365126034,20.0,138.13,138.07,5.62149553]
[1726365126346,20.0,138.13,138.08,5.62149553]
[1726365126526,20.0,138.13,138.06,0.2553353]
[1726365126527,20.0,138.13,138.09,5.62149553]
[1726365126862,20.0,138.13,138.06,0.2553353]
[1726365127147,20.0,138.13,138.07,5.62149553]
[1726365127315,20.0,138.13,138.08,5.62149553]
[1726365127518,20.0,138.13,138.06,0.2553353]
[1726365127714,20.0,138.13,138.09,5.62148437]
[1726365127941,20.0,138.13,138.1,5.62148437]
[1726365128119,20.0,138.13,138.06,0.2553353]
[1726365128319,20.0,138.13,138.07,5.62149071]
[1726365128542,20.0,138.13,138.08,5.62149071]
[1726365128746,20.0,138.13,138.09,5.62149071]
[1726365128932,20.0,138.13,138.1,5.62149071]
[1726365129232,20.0,138.13,138.06,0.2553353]
[1726365129437,27.2395,138.13,138.07,5.62155588]
[1726365129749,27.2395,138.13,138.08,5.62155588]
[1726365130043,27.2395,138.13,138.09,5.62155588]
[1726365130242,27.2395,138.13,138.1,5.62155588]
[1726365130542,27.2395,138.13,138.06,0.2553353]
[1726365130736,27.2395,138.13,138.07,5.62161004]
[1726365130920,27.2395,138.13,138.08,5.62161004]
[1726365131121,27.2395,138.13,138.09,5.62161004]
[1726365131323,2.88582407,138.14,138.1,5.62161004]
[1726365131324,22.88582407,138.14,138.1,5.62161004]
[1726365131631,27.2392,138.14,138.08,23.776884]
[1726365131859,27.2392,138.14,138.09,5.62136751]
[1726365132035,27.2392,138.14,138.1,5.62136751]
[1726365132234,27.2392,138.14,138.08,23.776884]
[1726365132429,27.2392,138.14,138.09,5.62135635]
[1726365132631,27.2392,138.14,138.1,5.62135635]
[1726365132830,27.2392,138.14,138.08,23.776884]
[1726365133031,27.2392,138.14,138.09,5.61977088]
[1726365133338,20.0,138.14,138.1,5.61972579]
[1726365133535,20.0,138.14,138.11,5.61972579]
[1726365133726,20.0,138.14,138.08,23.776884]
[1726365133920,20.0,138.14,138.09,5.6195254]
[1726365134249,20.0,138.14,138.1,7.06624208]
[1726365134427,22.88762624,138.14,138.11,5.6195254]
[1726365134627,22.88762624,138.14,138.08,23.776884]
[1726365134846,22.88762624,138.14,138.09,7.06725434]
[1726365135041,22.88762624,138.14,138.1,5.61963665]
[1726365135247,22.88762624,138.14,138.11,5.61963665]
[1726365135553,22.88762624,138.14,138.08,23.776884]
[1726365136053,22.88762624,138.14,138.09,1.44801781]
[1726365137625,2.88762624,138.14,138.09,1.44801781]
[1726365137959,20.0,138.15,138.09,1.44801781]
[1726365138140,20.0,138.15,138.09,0.12549]
[1726365138327,70.48092173,138.17,138.09,0.12549]
[1726365138527,70.48092173,138.17,138.11,0.12549]
[1726365138528,63.87762173,138.17,138.11,0.12549]
[1726365138739,63.87762173,138.17,138.11,1.57316561]
[1726365138740,7.2374,138.17,138.11,1.57316561]
[1726365139132,22.8748,138.18,138.11,1.57316561]
[1726365139343,25.74173405,138.18,138.11,1.57316561]
[1726365139934,20.0,138.17,138.11,1.57316561]
[1726365140444,20.0,138.17,138.11,0.12549]
[1726365142037,27.2374,138.17,138.11,0.12549]
[1726365146453,27.2374,138.17,138.11,1.57222452]
[1726365146757,27.2374,138.17,138.11,0.12549]
[1726365149344,27.2374,138.17,138.11,15.55409]
[1726365161751,7.2382,138.16,138.11,15.55409]
[1726365161957,20.0,138.16,138.11,15.4286]
[1726365162753,7.2391,138.14,138.11,15.4286]
[1726365163741,7.2386,138.15,138.11,15.4286]
[1726365186896,7.2391,138.14,138.11,15.4286]
[1726365194173,10.12437352,138.14,138.11,15.4286]
[1726365195768,10.12437352,138.14,138.12,5.61977778]
[1726365195969,10.12437352,138.14,138.13,5.61977778]
[1726365196187,10.12437352,138.14,138.11,15.4286]
[1726365196485,7.2395,138.13,138.12,5.61976691]
[1726365197790,7.2395,138.13,138.11,15.4286]
[1726365197969,7.2395,138.13,138.12,5.62109704]
[1726365199668,10.12427352,138.14,138.12,5.62109704]
[1726365199979,7.239,138.14,138.11,15.4286]
[1726365200671,7.2385,138.15,138.11,15.4286]
[1726365200874,10.15637702,138.15,138.11,15.4286]
[1726365210375,7.2391,138.14,138.11,15.4286]
[1726365227196,7.2397,138.13,138.11,15.4286]
[1726365229291,7.24,138.12,138.11,10.02957282]
[1726365229579,7.24,138.12,138.1,6.3025]
[1726365234905,7.2406,138.11,138.07,21.4667]
[1726365238386,7.2412,138.1,138.07,21.4667]
[1726365241406,10.17337688,138.11,138.07,21.4667]
[1726365241618,2.93267688,138.11,138.07,21.4667]
[1726365241808,27.2401,138.12,138.07,21.4667]
[1726365246932,27.2401,138.12,138.08,1.44619412]
[1726365247217,27.2401,138.12,138.07,21.4667]
[1726365260119,27.2401,138.12,138.08,5.62383772]
[1726365260321,27.2401,138.12,138.07,21.4667]
[1726365260617,27.2401,138.12,138.08,5.62383772]
[1726365260822,27.2401,138.12,138.07,21.4667]
[1726365261026,27.2401,138.12,138.08,5.62380425]
[1726365261217,27.2401,138.12,138.09,5.62380425]
[1726365261400,27.2401,138.12,138.07,21.4667]
[1726365261600,27.2401,138.12,138.08,5.62374116]
[1726365261800,27.2401,138.12,138.09,5.62374116]
[1726365262025,27.2401,138.12,138.07,21.4667]
[1726365262326,27.2401,138.12,138.08,5.62383772]
[1726365262526,27.2401,138.12,138.09,5.62383772]
[1726365262701,27.2401,138.12,138.07,21.4667]
[1726365262896,27.2401,138.12,138.08,5.62386847]
[1726365263114,27.2401,138.12,138.09,5.62386847]
[1726365263307,27.2401,138.12,138.07,21.4667]
[1726365263519,7.2406,138.11,138.08,5.62398139]
[1726365263721,7.2406,138.11,138.09,5.62398139]
[1726365264023,7.2406,138.11,138.07,21.4667]
[1726365264226,7.2406,138.11,138.08,5.62376411]
[1726365264398,7.2406,138.11,138.09,5.62376411]
[1726365264602,7.2406,138.11,138.07,21.4667]
[1726365264804,7.2406,138.11,138.08,5.62376411]
[1726365265036,7.2406,138.11,138.09,5.62376411]
[1726365265322,7.2406,138.11,138.07,21.4667]
[1726365272232,7.2406,138.11,138.08,4.00263792]
[1726365272429,7.2406,138.11,138.07,21.4667]
[1726365272638,7.2406,138.11,138.08,4.00259498]
[1726365272819,7.2406,138.11,138.07,21.4667]
[1726365288926,7.2406,138.11,138.07,6.13]
[1726365296844,7.2411,138.1,138.06,0.2553353]
[1726365310741,7.2406,138.11,138.06,0.2553353]
[1726365311139,2.80879335,138.13,138.07,24.027864]
[1726365311336,20.0,138.14,138.07,24.027864]
[1726365311536,7.2399,138.13,138.07,24.027864]
[1726365311932,10.14157313,138.14,138.09,0.12549]
[1726365312931,10.14157313,138.14,138.08,0.12549]
[1726365312932,10.14157313,138.14,138.08,0.37647]
[1726365315843,10.14157313,138.14,138.08,0.25098]
[1726365316043,10.14157313,138.14,138.08,0.12549]
[1726365316246,10.14157313,138.14,138.09,23.776884]
[1726365319047,6.64022173,138.19,138.11,23.776884]
[1726365319441,50.2553353,138.2,138.11,23.776884]
[1726365320263,7.238,138.16,138.11,23.776884]
[1726365325545,7.238,138.16,138.12,5.61988031]
[1726365325751,7.238,138.16,138.11,23.776884]
[1726365325955,7.238,138.16,138.12,5.61988593]
[1726365326154,7.238,138.16,138.11,23.776884]
[1726365326363,7.238,138.16,138.12,5.61988593]
[1726365326545,7.238,138.16,138.11,23.776884]
[1726365326746,7.2385,138.15,138.12,5.61987578]
[1726365327068,7.2385,138.15,138.1,6.26379]
[1726365333661,7.238,138.16,138.11,23.776884]
[1726365333977,7.238,138.16,138.12,15.5038]
[1726365334145,50.2553353,138.2,138.12,15.5038]
[1726365334146,10.11911746,138.17,138.12,15.5038]
[1726365334350,7.2375,138.17,138.12,15.5038]
[1726365334572,7.2375,138.17,138.12,16.95147984]
[1726365334978,7.2375,138.17,138.12,15.5038]
[1726365346177,7.2375,138.17,138.12,16.95148835]
[1726365346768,7.237,138.18,138.13,6.2889]
[1726365347081,10.37075413,138.2,138.14,0.12549]
[1726365347259,7.2365,138.19,138.14,0.12549]
[1726365351283,7.2369,138.18,138.13,6.2889]
[1726365351490,3.13465413,138.2,138.13,6.2889]
[1726365351677,7.2373,138.18,138.13,6.2889]
[1726365353766,7.0573,138.18,138.13,6.2889]
[1726365354286,7.0573,138.18,138.13,10.28778048]
[1726365354995,7.0573,138.18,138.13,6.2889]
[1726365356190,7.0573,138.18,138.13,10.28812169]
[1726365357300,7.2375,138.17,138.13,6.2889]
[1726365358373,6.7375,138.17,138.13,6.2889]
[1726365369605,53.13465413,138.2,138.13,6.2889]
[1726365369606,7.238,138.16,138.13,6.2889]
[1726365373794,7.2375,138.17,138.13,7.73664414]
[1726365374494,7.237,138.18,138.13,7.73664414]
[1726365374682,7.237,138.18,138.14,0.12549]
[1726365382805,7.2374,138.17,138.13,6.2889]
[1726365384893,7.2374,138.17,138.13,7.7365077]
[1726365385106,7.237,138.18,138.13,7.7365077]
[1726365387315,7.237,138.18,138.14,5.6207204]
[1726365387497,7.237,138.18,138.15,5.6207204]
[1726365387697,7.237,138.18,138.16,5.6207204]
[1726365387910,7.237,138.18,138.13,7.7365077]
[1726365388120,7.237,138.18,138.14,5.62071688]
[1726365388426,7.237,138.18,138.15,5.62071459]
[1726365388629,7.237,138.18,138.13,7.7365077]
[1726365392922,7.237,138.18,138.13,6.2889]
[1726365400917,7.2375,138.17,138.13,6.2889]
[1726365402707,7.2375,138.17,138.14,1.44758179]
[1726365403825,3.13465413,138.2,138.15,1.4475676]
[1726365404825,3.13465413,138.2,138.14,1.44740693]
[1726365405218,3.13465413,138.2,138.15,0.12549]
[1726365405418,7.2364,138.19,138.15,0.12549]
[1726365408914,7.2364,138.19,138.14,24.027864]
[1726365409416,7.2364,138.19,138.15,1.44742863]
[1726365410328,7.2364,138.19,138.14,24.153354]
[1726365410512,7.2364,138.19,138.15,0.12549]
[1726365419315,7.2371,138.18,138.14,24.027864]
[1726365421738,7.2365,138.19,138.15,1.44741351]
[1726365422047,7.237,138.18,138.14,24.027864]
[1726365422237,7.2381,138.16,138.14,0.12549]
[1726365423339,7.2374,138.17,138.14,0.12549]
[1726365428044,7.2374,138.17,138.14,1.57303148]
[1726365430754,7.237,138.18,138.14,1.57303148]
[1726365436657,7.237,138.18,138.14,24.027864]
[1726365437062,7.2364,138.19,138.14,24.027864]
[1726365437341,7.2364,138.19,138.16,0.12549]
[1726365457098,7.2364,138.19,138.16,1.57278927]
[1726365458267,7.2364,138.19,138.16,0.12549]
[1726365459369,7.2364,138.19,138.16,23.902374]
[1726365468076,7.2364,138.19,138.17,6.0315]
[1726365468263,7.2364,138.19,138.17,7.47870688]
[1726365468463,7.2364,138.19,138.18,1.4472078]
[1726365468766,7.4912353,138.2,138.18,1.4472078]
[1726365468967,7.4912353,138.2,138.17,6.0315]
[1726365469670,7.4912353,138.2,138.17,7.47867293]
[1726365472111,7.2364,138.19,138.17,7.47867293]
[1726365472255,7.2364,138.19,138.17,6.0315]
[1726365478892,7.2364,138.19,138.17,7.47869735]
[1726365479591,7.4912353,138.2,138.17,6.0315]
[1726365480780,7.4912353,138.2,138.18,0.12549]
[1726365492693,7.4912353,138.2,138.18,24.027864]
[1726365495515,7.4912353,138.2,138.18,25.47495492]
[1726365498100,0.2553353,138.2,138.18,25.47495492]
[1726365501217,7.4913353,138.2,138.18,24.027864]
[1726365502301,0.2553353,138.2,138.18,24.027864]
[1726365505617,0.2553353,138.2,138.18,25.47494871]
[1726365508695,0.2553353,138.2,138.19,5.74368807]
[1726365508896,0.2553353,138.2,138.19,5.86917807]
[1726365510114,0.2553353,138.2,138.19,5.86917313]
[1726365513419,0.2553353,138.2,138.19,9.8670098]
[1726365514724,0.2553353,138.2,138.19,33.7693838]
[1726365516522,0.2553353,138.2,138.19,24.153354]
[1726365516827,0.2553353,138.2,138.19,5.99384688]
[1726365517008,0.2553353,138.2,138.19,33.76803927]
[1726365520422,0.2553353,138.2,138.19,24.153354]
[1726365520604,0.2553353,138.2,138.19,33.77098544]
[1726365526804,0.2553353,138.2,138.19,24.153354]
[1726365527004,0.2553353,138.2,138.19,29.77125282]
[1726365527236,0.2553353,138.2,138.19,33.76892904]
[1726365528308,0.2553353,138.2,138.19,49.42952904]
[1726365528932,7.4891353,138.24,138.2,24.027864]
[1726365528933,7.2444706,138.24,138.2,24.027864]
[1726365529139,7.2444706,138.24,138.21,9.61557504]
[1726365529313,7.2444706,138.24,138.22,5.61789882]
[1726365529514,7.2444706,138.24,138.23,5.61789882]
[1726365529919,6.7444706,138.24,138.23,5.61789882]
[1726365530229,6.7444706,138.24,138.2,30.42190231]
[1726365530611,6.7444706,138.24,138.2,6.51981738]
[1726365530818,6.7444706,138.24,138.2,0.12549]
[1726365535207,7.2348,138.22,138.18,23.776884]
[1726365535416,16.4546,138.26,138.19,0.12549]
[1726365536511,7.2344,138.23,138.19,0.12549]
[1726365543536,7.2339,138.24,138.19,0.12549]
[1726365544317,7.2343,138.23,138.19,0.12549]
[1726365545838,7.2339,138.24,138.19,0.12549]
[1726365549839,7.2339,138.24,138.19,1.57256122]
[1726365550435,7.2333,138.25,138.19,1.57256122]
[1726365552846,7.2333,138.25,138.2,0.12549]
[1726365553727,7.2333,138.25,138.2,23.902374]
[1726365557427,7.2333,138.25,138.21,1.44689916]
[1726365557730,7.2333,138.25,138.21,0.12549]
[1726365558846,7.2333,138.25,138.2,0.25098]
[1726365577180,7.2333,138.25,138.2,6.65978]
[1726365590775,7.2333,138.25,138.21,5.62129233]
[1726365590950,7.2333,138.25,138.22,5.62129233]
[1726365591273,7.2333,138.25,138.23,5.62129233]
[1726365591466,7.2333,138.25,138.2,6.65978]
[1726365591647,7.2333,138.25,138.21,9.62182792]
[1726365591849,7.2333,138.25,138.22,5.62158226]
[1726365592149,7.2333,138.25,138.23,5.62158226]
[1726365592349,7.2333,138.25,138.21,4.00030589]
[1726365592570,7.2333,138.25,138.22,5.62166586]
[1726365592871,7.2333,138.25,138.23,5.62166586]
[1726365593168,7.2333,138.25,138.2,6.65978]
[1726365593359,7.2333,138.25,138.21,9.62214556]
[1726365593555,7.234,138.24,138.22,5.62177035]
[1726365593763,7.234,138.24,138.23,5.62177035]
[1726365600478,7.234,138.24,138.2,6.4088]
[1726365600683,7.234,138.24,138.21,5.62222204]
[1726365600982,7.234,138.24,138.22,5.62145346]
[1726365601156,7.234,138.24,138.23,5.62145346]
[1726365601661,7.2333,138.25,138.23,5.62145346]
[1726365601854,7.2328,138.26,138.24,5.62145346]
[1726365602055,7.2328,138.26,138.2,6.4088]
[1726365602251,7.2328,138.26,138.21,16.02079597]
[1726365602451,7.2328,138.26,138.22,9.62096656]
[1726365602766,7.2328,138.26,138.23,5.62107318]
[1726365602962,20.0,138.27,138.24,5.62107318]
[1726365603182,20.0,138.27,138.21,0.12549]
[1726365603483,27.2324,138.27,138.22,9.62065531]
[1726365603666,27.2324,138.27,138.23,5.62089709]
[1726365603983,27.2324,138.27,138.21,0.12549]
[1726365604284,7.2328,138.26,138.22,3.99969705]
[1726365604459,7.2328,138.26,138.21,0.12549]
[1726365604781,7.2328,138.26,138.22,3.999701]
[1726365604980,7.2328,138.26,138.21,0.12549]
[1726365605181,7.2328,138.26,138.22,3.99972292]
[1726365605357,7.2328,138.26,138.21,0.12549]
[1726365605687,7.2328,138.26,138.22,3.99972292]
[1726365605859,7.2328,138.26,138.21,0.12549]
[1726365606062,7.2328,138.26,138.22,3.99976941]
[1726365606275,7.2328,138.26,138.21,0.12549]
[1726365606865,7.2328,138.26,138.22,3.99977033]
[1726365607058,7.2328,138.26,138.21,0.12549]
[1726365609078,7.2333,138.25,138.2,6.4088]
[1726365609281,7.2333,138.25,138.21,6.39968894]
[1726365609484,7.2333,138.25,138.2,6.4088]
[1726365609989,7.2333,138.25,138.21,6.39996446]
[1726365610487,7.2333,138.25,138.2,6.4088]
[1726365610669,7.2333,138.25,138.21,6.40026315]
[1726365610874,7.2333,138.25,138.2,6.4088]
[1726365611076,7.2333,138.25,138.21,6.40022969]
[1726365611490,7.2333,138.25,138.2,6.4088]
[1726365627309,7.2333,138.25,138.19,0.12549]
[1726365654629,7.2333,138.25,138.19,8.93434563]
[1726365655199,20.0,138.25,138.19,8.93434563]
[1726365656421,20.0,138.25,138.2,7.2358]
[1726365656731,20.0,138.25,138.19,31.264064]
[1726365657321,20.0,138.25,138.19,7.48718]
[1726365657651,27.2333,138.25,138.19,7.36169]
[1726365660134,20.0,138.25,138.19,7.36169]
[1726365663820,20.0,138.25,138.2,5.62260385]
[1726365664034,20.0,138.25,138.21,5.62260385]
[1726365664335,20.0,138.25,138.19,7.36169]
[1726365666736,20.0,138.25,138.19,8.80868547]
[1726365667042,20.0,138.25,138.19,7.36169]
[1726365667240,20.0,138.25,138.2,4.00061648]
[1726365667649,20.0,138.25,138.21,4.00061648]
[1726365667954,20.0,138.25,138.22,4.00061648]
[1726365668162,20.0,138.25,138.19,7.36169]
[1726365668342,20.0,138.25,138.2,4.00113418]
[1726365668541,20.0,138.25,138.21,4.00113418]
[1726365668742,20.0,138.25,138.22,4.00113418]
[1726365669050,20.0,138.25,138.19,7.36169]
[1726365670151,27.2333,138.25,138.19,0.12549]
[1726365671757,27.2333,138.25,138.2,6.40206642]
[1726365672048,27.2333,138.25,138.21,6.40206642]
[1726365672254,27.2333,138.25,138.19,0.12549]
[1726365672557,27.2333,138.25,138.2,6.40217736]
[1726365672852,27.2333,138.25,138.21,6.40217736]
[1726365673153,27.2333,138.25,138.19,0.12549]
[1726365673356,27.2333,138.25,138.2,6.40206642]
[1726365673529,27.2333,138.25,138.21,6.40206642]
[1726365673738,27.2333,138.25,138.19,0.12549]
[1726365673941,27.2333,138.25,138.2,6.40184497]
[1726365674149,27.2333,138.25,138.19,0.12549]
[1726365674560,27.2333,138.25,138.21,6.40207275]
[1726365674771,27.2333,138.25,138.19,0.12549]
[1726365675147,27.2333,138.25,138.2,6.40206452]
[1726365675347,27.2333,138.25,138.21,6.40206452]
[1726365675551,27.2333,138.25,138.19,0.12549]
[1726365675856,27.2333,138.25,138.2,6.40206642]
[1726365676060,27.2333,138.25,138.21,6.40206642]
[1726365676258,27.2333,138.25,138.19,0.12549]
[1726365676463,27.2333,138.25,138.2,6.40228535]
[1726365676643,27.2333,138.25,138.21,6.40228535]
[1726365676942,27.2333,138.25,138.19,0.12549]
[1726365677241,27.2333,138.25,138.2,6.40337066]
[1726365677445,27.2333,138.25,138.19,0.12549]
[1726365678062,27.2333,138.25,138.2,6.40325634]
[1726365678545,27.2333,138.25,138.21,6.40325634]
[1726365678750,27.2333,138.25,138.19,0.12549]
[1726365679061,27.2333,138.25,138.2,6.40308125]
[1726365679356,27.2333,138.25,138.21,6.40308125]
[1726365679561,27.2333,138.25,138.19,0.12549]
[1726365679762,27.2333,138.25,138.2,6.40327039]
[1726365680059,27.2333,138.25,138.21,6.40327039]
[1726365680263,27.2333,138.25,138.19,0.12549]
[1726365680446,27.2333,138.25,138.2,6.4034549]
[1726365680758,27.2333,138.25,138.21,6.4034549]
[1726365681062,27.2333,138.25,138.19,0.12549]
[1726365681766,27.2333,138.25,138.2,6.40327334]
[1726365682285,27.2333,138.25,138.19,0.12549]
[1726365694268,27.2333,138.25,138.19,7.36179]
[1726365705795,27.2333,138.25,138.19,7.2363]
[1726365722888,20.0,138.25,138.21,7.2353]
[1726365724194,20.0,138.25,138.22,5.62704747]
[1726365724396,20.0,138.25,138.21,7.2353]
[1726365724397,20.0,138.25,138.23,5.62704747]
[1726365724582,20.0,138.25,138.24,5.62704747]
[1726365725696,20.0,138.25,138.24,5.62635171]
[1726365729807,20.0,138.25,138.24,5.62229175]
[1726365730889,20.0,138.25,138.24,5.62394684]
[1726365731503,20.0,138.25,138.2,7.2358]
[1726365732006,20.0,138.25,138.21,4.0021002]
[1726365732318,20.0,138.25,138.21,8.00419802]
[1726365732597,20.0,138.25,138.22,4.00209782]
[1726365732801,20.0,138.25,138.21,4.0021002]
[1726365732993,20.0,138.25,138.22,4.002087]
[1726365733196,20.0,138.25,138.2,7.2358]
[1726365733497,20.0,138.25,138.21,4.00209003]
[1726365733693,20.0,138.25,138.21,8.0041819]
[1726365733888,20.0,138.25,138.22,4.00209187]
[1726365734096,20.0,138.25,138.21,4.00209003]
[1726365734305,20.0,138.25,138.22,4.00208607]
[1726365734508,20.0,138.25,138.21,4.00209003]
[1726365734827,20.0,138.25,138.22,4.0020994]
[1726365734981,20.0,138.25,138.21,4.00209003]
[1726365735390,20.0,138.25,138.22,4.00193171]
[1726365735699,20.0,138.25,138.21,4.00209003]
[1726365736003,20.0,138.25,138.22,4.00203975]
[1726365736184,20.0,138.25,138.21,4.00209003]
[1726365736392,20.0,138.25,138.22,4.00205677]
[1726365736700,20.0,138.25,138.21,4.00209003]
[1726365737399,20.0,138.25,138.22,4.00202709]
[1726365737807,0.2553353,138.28,138.25,0.25098]
[1726365738000,0.2553353,138.28,138.23,22.07819]
[1726365738204,0.2553353,138.28,138.24,4.12408464]
[1726365738403,0.2553353,138.28,138.25,3.99859464]
[1726365738619,0.2553353,138.28,138.24,0.12549]
[1726365738823,0.2553353,138.28,138.25,3.99850919]
[1726365739017,0.2553353,138.28,138.26,3.99850919]
[1726365739323,0.2553353,138.28,138.25,11.23124071]
[1726365739516,0.2553353,138.28,138.25,7.2331]
[1726365745916,0.2553353,138.28,138.26,7.2326]
[1726365748326,0.2553353,138.28,138.24,7.48428]
[1726365748509,0.2553353,138.28,138.25,0.12549]
[1726365749438,0.2553353,138.28,138.25,7.35869]
[1726365749926,0.2553353,138.28,138.26,7.2326]
[1726365753831,0.2553353,138.28,138.25,7.35859]
[1726365756126,0.2553353,138.28,138.23,24.467]
[1726365757134,0.2553353,138.28,138.23,31.7012]
[1726365758030,7.4871353,138.28,138.23,31.7012]
[1726365758237,7.4871353,138.28,138.23,31.2012]
[1726365774947,7.4871353,138.28,138.24,4.00049418]
[1726365776822,7.4871353,138.28,138.24,4.00060112]
[1726365778237,7.4871353,138.28,138.23,31.2012]
[1726365778452,7.4871353,138.28,138.24,4.00062697]
[1726365778740,7.4871353,138.28,138.23,25.3189]
[1726365778947,7.4871353,138.28,138.24,4.00069626]
[1726365779132,7.4871353,138.28,138.23,25.3189]
[1726365779322,7.4871353,138.28,138.24,4.00068139]
[1726365779525,7.4871353,138.28,138.23,25.3189]
[1726365780338,7.4871353,138.28,138.24,4.0006121]
[1726365780633,7.4871353,138.28,138.25,4.0006121]
[1726365780839,50.0,138.31,138.23,25.3189]
[1726365781031,50.0,138.31,138.24,4.00064378]
[1726365781337,50.0,138.31,138.25,4.00064378]
[1726365781541,50.0,138.31,138.23,25.3189]
[1726365781726,50.0,138.31,138.24,4.00064309]
[1726365781926,50.0,138.31,138.25,4.00064309]
[1726365782130,50.0,138.31,138.23,25.3189]
[1726365782328,7.2318,138.28,138.24,4.00062551]
[1726365782544,7.2318,138.28,138.25,4.00062551]
[1726365782845,7.2318,138.28,138.23,25.3189]
[1726365783030,7.2318,138.28,138.24,4.00044462]
[1726365783226,7.2318,138.28,138.25,4.00044462]
[1726365783431,7.2318,138.28,138.23,25.3189]
[1726365783651,7.2318,138.28,138.24,4.0005004]
[1726365783825,7.2318,138.28,138.25,4.0005004]
[1726365784026,7.2318,138.28,138.26,4.0005004]
[1726365784326,7.2318,138.28,138.23,25.3189]
[1726365784523,7.2318,138.28,138.24,4.00050739]
[1726365784729,7.2318,138.28,138.25,4.00050739]
[1726365785026,7.2318,138.28,138.26,4.00050739]
[1726365785226,7.2318,138.28,138.23,25.3189]
[1726365785433,7.2318,138.28,138.24,4.00055201]
[1726365785647,7.2318,138.28,138.25,4.00055201]
[1726365785834,7.2318,138.28,138.26,4.00054133]
[1726365786040,7.2318,138.28,138.23,25.3189]
[1726365786432,7.2318,138.28,138.24,4.00050645]
[1726365786728,7.2318,138.28,138.24,8.0010129]
[1726365786945,7.2318,138.28,138.25,4.00050645]
[1726365787126,7.2318,138.28,138.26,4.00050645]
[1726365787333,7.2318,138.28,138.24,4.00050645]
[1726365788424,7.2318,138.28,138.25,4.00121653]
[1726365788719,7.2318,138.28,138.24,4.00050645]
[1726365788720,7.2318,138.28,138.26,4.00121653]
[1726365788926,7.2318,138.28,138.24,4.00050645]